fUSD/lending_fUSD_20250208
["ID","MTS","AMOUNT","RATE_DAILY","PERIOD"]
[352282106,1739026265149,-500.0,0.00010683,2]
[352282107,1739026265158,-1842.63,0.00010683,2]
[352282108,1739026265168,-1514.24,0.00010683,2]
[352282109,1739026265178,-2573.5,0.00010683,2]
[352282110,1739026265187,-2211.87,0.00010683,2]
[352282111,1739026265199,-2441.09,0.00010683,2]
[352282112,1739026265209,-657.03,0.00010683,2]
[352282113,1739026265219,-2415.47,0.00010683,2]
[352282114,1739026265228,-1133.49,0.00010683,2]
[352282115,1739026265238,-1000.0,0.00010683,2]
[352282116,1739026265248,-530.45,0.00010683,2]
[352282117,1739026265259,-1151.35,0.00010683,2]
[352282118,1739026265270,-500.0,0.00010683,2]
[352282119,1739026265280,-3467.02,0.00010683,2]
[352282120,1739026265290,-1453.75,0.00010683,2]
[352282121,1739026265300,-965.47,0.00010683,2]
[352282122,1739026265310,-1424.71,0.00010683,2]
[352282123,1739026265320,-1182.56,0.00010683,2]
[352282124,1739026265330,-500.0,0.00010683,2]
[352282125,1739026265340,-995.21,0.00010683,2]
[352282126,1739026265349,-794.79,0.00010683,2]
[352282127,1739026265359,-1067.88,0.00010683,2]
[352282128,1739026265368,-2227.08,0.00010683,2]
[352282129,1739026265378,-500.0,0.00010683,2]
[352282130,1739026265387,-2566.83,0.00010683,2]
[352282131,1739026265397,-2497.06,0.00010683,2]
[352282132,1739026265406,-520.29,0.00010683,2]
[352282133,1739026265416,-759.9,0.00010683,2]
[352282134,1739026265427,-970.99,0.00010683,2]
[352282135,1739026265437,-690.89,0.00010683,2]
[352282136,1739026265451,-2478.07,0.00010683,2]
[352282137,1739026265460,-500.0,0.00010683,2]
[352282138,1739026265470,-1873.84,0.00010683,2]
[352282139,1739026265479,-1551.26,0.00010683,2]
[352282140,1739026265489,-849.37,0.00010683,2]
[352282141,1739026265498,-507.02,0.00010683,2]
[352282142,1739026265508,-500.0,0.00010683,2]
[352282143,1739026265518,-968.16,0.00010683,2]
[352282144,1739026265527,-500.0,0.00010684,2]
[352282145,1739026265536,-500.0,0.00010684,2]
[352282146,1739026265545,-500.0,0.00010684,2]
[352282147,1739026265554,-500.0,0.00010684,2]
[352282148,1739026265564,-500.0,0.00010684,2]
[352282149,1739026265573,-210.6181786,0.00010684,2]
[352282150,1739026265583,-331.83,0.00010684,2]
[352282151,1739026265592,-500.0,0.00010684,2]
[352282152,1739026265601,-500.0,0.00010684,2]
[352282153,1739026265610,-500.0,0.00010684,2]
[352282154,1739026265619,-500.0,0.00010684,2]
[352282155,1739026265629,-500.0,0.00010684,2]
[352282156,1739026265638,-500.0,0.00010684,2]
[352282157,1739026265648,-1406.72,0.00010684,2]
[352282158,1739026265659,-606.94,0.00010684,2]
[352282159,1739026265668,-500.0,0.00010684,2]
[352282160,1739026265677,-500.0,0.00010684,2]
[352282161,1739026265687,-599.03,0.00010684,2]
[352282162,1739026265698,-500.0,0.00010684,2]
[352282163,1739026265707,-500.0,0.00010684,2]
[352282164,1739026265716,-500.0,0.00010684,2]
[352282165,1739026265725,-500.0,0.00010684,2]
[352282166,1739026265735,-500.0,0.00010684,2]
[352282167,1739026265744,-500.0,0.00010684,2]
[352282168,1739026265754,-500.0,0.00010684,2]
[352282169,1739026265763,-500.0,0.00010684,2]
[352282170,1739026265773,-500.0,0.00010684,2]
[352282171,1739026265783,-500.0,0.00010684,2]
[352282172,1739026265796,-500.0,0.00010684,2]
[352282173,1739026265806,-500.0,0.00010684,2]
[352282174,1739026265815,-500.0,0.00010684,2]
[352282175,1739026265824,-585.91,0.00010684,2]
[352282176,1739026265837,-500.0,0.00010684,2]
[352282177,1739026265848,-895.43,0.00010684,2]
[352282178,1739026265858,-667.16,0.00010684,2]
[352282179,1739026265869,-500.0,0.00010684,2]
[352282180,1739026265879,-1122.19,0.00010684,2]
[352282181,1739026265889,-1100.4,0.00010684,2]
[352282182,1739026265900,-500.0,0.00010684,2]
[352282183,1739026265909,-500.0,0.00010684,2]
[352282184,1739026265918,-500.0,0.00010684,2]
[352282185,1739026265927,-500.0,0.00010684,2]
[352282186,1739026265936,-500.0,0.00010684,2]
[352282187,1739026265946,-821.72,0.00010684,2]
[352282188,1739026265956,-861.29,0.00010684,2]
[352282189,1739026265965,-920.67,0.00010684,2]
[352282190,1739026265974,-500.0,0.00010684,2]
[352282191,1739026265983,-579.08,0.00010684,2]
[352282192,1739026265992,-500.0,0.00010684,2]
[352282193,1739026266003,-500.0,0.00010684,2]
[352282194,1739026266012,-772.46,0.00010684,2]
[352282195,1739026266021,-500.0,0.00010684,2]
[352282196,1739026266031,-601.24,0.00010684,2]
[352282197,1739026266040,-500.0,0.00010684,2]
[352282198,1739026266050,-500.0,0.00010684,2]
[352282199,1739026266060,-500.0,0.00010684,2]
[352282200,1739026266069,-500.0,0.00010684,2]
[352282201,1739026266079,-500.0,0.00010684,2]
[352282202,1739026266089,-500.0,0.00010684,2]
[352282203,1739026266099,-500.0,0.00010684,2]
[352282204,1739026266108,-528.45,0.00010684,2]
[352282205,1739026266118,-500.0,0.00010684,2]
[352282206,1739026266127,-500.0,0.00010684,2]
[352282207,1739026266136,-500.0,0.00010684,2]
[352282208,1739026266146,-500.0,0.00010684,2]
[352282209,1739026266155,-500.0,0.00010684,2]
[352282210,1739026266165,-500.0,0.00010684,2]
[352282211,1739026266175,-500.0,0.00010684,2]
[352282212,1739026266184,-500.0,0.00010684,2]
[352282213,1739026266194,-500.0,0.00010684,2]
[352282214,1739026266205,-500.0,0.00010684,2]
[352282215,1739026266214,-500.0,0.00010684,2]
[352282216,1739026266223,-500.0,0.00010684,2]
[352282217,1739026266233,-570.74,0.00010684,2]
[352282218,1739026266243,-500.0,0.00010684,2]
[352282219,1739026266252,-930.88,0.00010684,2]
[352282220,1739026266262,-1107.01,0.00010684,2]
[352282221,1739026266271,-500.0,0.00010684,2]
[352282222,1739026266281,-500.0,0.00010684,2]
[352282223,1739026266290,-500.0,0.00010684,2]
[352282224,1739026266300,-287.08451564,0.00010684,2]
[352282225,1739026266309,-500.0,0.00010684,2]
[352282226,1739026266319,-785.72,0.00010684,2]
[352282227,1739026266328,-592.81,0.00010684,2]
[352282228,1739026266337,-500.0,0.00010684,2]
[352282229,1739026266347,-543.22,0.00010684,2]
[352282230,1739026266357,-500.0,0.00010684,2]
[352282231,1739026266366,-500.0,0.00010684,2]
[352282232,1739026266376,-227.60035733,0.00010684,2]
[352282233,1739026266386,-503.07,0.00010684,2]
[352282234,1739026266395,-500.0,0.00010684,2]
[352282235,1739026266404,-500.0,0.00010684,2]
[352282236,1739026266413,-500.0,0.00010684,2]
[352282237,1739026266423,-1069.38,0.00010684,2]
[352282238,1739026266432,-500.0,0.00010684,2]
[352282239,1739026266441,-855.76,0.00010684,2]
[352282240,1739026266451,-500.0,0.00010684,2]
[352282241,1739026266461,-500.0,0.00010684,2]
[352282242,1739026266471,-500.0,0.00010684,2]
[352282243,1739026266480,-500.0,0.00010684,2]
[352282244,1739026266489,-1052.13,0.00010684,2]
[352282245,1739026266498,-240.67937746,0.00010684,2]
[352282246,1739026266507,-500.0,0.00010684,2]
[352282247,1739026266517,-934.78,0.00010684,2]
[352282248,1739026266527,-500.0,0.00010684,2]
[352282249,1739026266536,-500.0,0.00010684,2]
[352282250,1739026266545,-500.0,0.00010684,2]
[352282251,1739026266555,-2206.29,0.00010684,2]
[352282252,1739026266564,-528.4,0.00010684,2]
[352282253,1739026266573,-1147.02,0.00010684,2]
[352282254,1739026266582,-500.0,0.00010684,2]
[352282255,1739026266592,-2642.41,0.00010684,2]
[352282256,1739026266601,-500.0,0.00010684,2]
[352282257,1739026266611,-500.0,0.00010684,2]
[352282258,1739026266620,-972.34,0.00010684,2]
[352282259,1739026266630,-2127.470822,0.00010684,2]
[352282260,1739026266639,-552.39,0.00010684,2]
[352282261,1739026266649,-500.0,0.00010684,2]
[352282262,1739026266658,-500.0,0.00010684,2]
[352282263,1739026266667,-1133.72,0.00010684,2]
[352282264,1739026266677,-855.37,0.00010684,2]
[352282265,1739026266687,-155.619165,0.00010684,2]
[352282266,1739026266697,-500.0,0.00010684,2]
[352282267,1739026266707,-1695.0,0.00010684,2]
[352282268,1739026266716,-386.06184338,0.00010684,2]
[352282269,1739026266725,-626.07,0.00010684,2]
[352282270,1739026266788,-500.0,0.00010684,2]
[352282271,1739026266799,-500.0,0.00010684,2]
[352282272,1739026266808,-1409.43,0.00010684,2]
[352282273,1739026266818,-1046.27,0.00010684,2]
[352282274,1739026266827,-500.0,0.00010684,2]
[352282275,1739026266836,-500.0,0.00010684,2]
[352282276,1739026266845,-1819.147157,0.00010684,2]
[352282277,1739026266854,-1167.45,0.00010684,2]
[352282278,1739026266864,-500.0,0.00010684,2]
[352282279,1739026266874,-1148.79,0.00010684,2]
[352282280,1739026266883,-500.0,0.00010684,2]
[352282281,1739026266893,-833.83,0.00010684,2]
[352282282,1739026266902,-1505.15,0.00010684,2]
[352282283,1739026266912,-500.0,0.00010684,2]
[352282284,1739026266922,-500.0,0.00010684,2]
[352282285,1739026266931,-986.26,0.00010684,2]
[352282286,1739026266939,-500.0,0.00010684,2]
[352282287,1739026266950,-1777.8,0.00010684,2]
[352282288,1739026266959,-1256.33,0.00010684,2]
[352282289,1739026266968,-582.44,0.00010684,2]
[352282290,1739026266977,-500.0,0.00010684,2]
[352282291,1739026266988,-500.0,0.00010684,2]
[352282292,1739026266998,-1138.32,0.00010684,2]
[352282293,1739026267008,-500.0,0.00010684,2]
[352282294,1739026267017,-1649.27,0.00010684,2]
[352282295,1739026267026,-2266.83,0.00010684,2]
[352282296,1739026267035,-500.0,0.00010684,2]
[352282297,1739026267045,-500.0,0.00010684,2]
[352282298,1739026267054,-500.0,0.00010684,2]
[352282299,1739026267063,-1948.92,0.00010684,2]
[352282300,1739026267072,-5772.15,0.00010684,2]
[352282301,1739026267082,-500.0,0.00010684,2]
[352282302,1739026267091,-2764.98,0.00010684,2]
[352282303,1739026267100,-500.0,0.00010684,2]
[352282304,1739026267109,-500.0,0.00010684,2]
[352282305,1739026267118,-4071.61,0.00010684,2]
[352282306,1739026267127,-500.0,0.00010684,2]
[352282307,1739026267136,-556.12,0.00010684,2]
[352282308,1739026267145,-1437.93,0.00010684,2]
[352282309,1739026267154,-500.0,0.00010684,2]
[352282310,1739026267163,-500.0,0.00010684,2]
[352282311,1739026267172,-500.0,0.00010684,2]
[352282312,1739026267182,-500.0,0.00010684,2]
[352282313,1739026267191,-1065.03,0.00010684,2]
[352282314,1739026267201,-500.0,0.00010684,2]
[352282315,1739026267211,-856.9,0.00010684,2]
[352282316,1739026267221,-500.0,0.00010684,2]
[352282317,1739026267230,-2557.02,0.00010684,2]
[352282318,1739026267239,-500.0,0.00010684,2]
[352282319,1739026267250,-2691.93,0.00010684,2]
[352282320,1739026267260,-1075.04,0.00010684,2]
[352282321,1739026267269,-2127.64,0.00010684,2]
[352282322,1739026267279,-1562.42,0.00010684,2]
[352282323,1739026267288,-500.0,0.00010684,2]
[352282324,1739026267297,-500.0,0.00010684,2]
[352282325,1739026267306,-1254.87,0.00010684,2]
[352282326,1739026267315,-1365.08,0.00010684,2]
[352282327,1739026267324,-625.68,0.00010684,2]
[352282328,1739026267334,-154.16148571,0.00010689,2]
[352282329,1739026267343,-433.0,0.0001069,2]
[352282330,1739026267352,-258.54813259,0.00010742,2]
[352282331,1739026267361,-154.16148571,0.00010742,2]
[352282332,1739026267371,-163.67677193,0.00010752,2]
[352282333,1739026267380,-31064.14007226,0.0001077,3]
[352282334,1739026267389,-500.0,0.00010773,2]
[352282335,1739026267399,-500.0,0.00010773,2]
[352282336,1739026267408,-500.0,0.00010779,2]
[352282337,1739026267417,-500.0,0.00010779,2]
[352282338,1739026267426,-500.0,0.00010779,2]
[352282339,1739026267435,-1063.48537791,0.0001078,2]
[352282340,1739026267444,-690190.23721524,0.0001078,2]
[352282341,1739026267454,-151.0,0.0001078,2]
[352282342,1739026267463,-151.0,0.0001078,2]
[352282343,1739026267472,-1416.97354491,0.0001078,2]
[352282344,1739026267480,-467.08924523,0.0001078,2]
[352282345,1739026267489,-154.16148571,0.00010795,2]
[352282346,1739026267499,-500.0,0.00010795,2]
[352282347,1739026267508,-500.0,0.00010795,2]
[352282348,1739026267517,-500.0,0.00010795,2]
[352282349,1739026267527,-1022.0,0.00010795,2]
[352282350,1739026267536,-500.0,0.00010795,2]
[352282351,1739026267545,-986.57,0.00010795,2]
[352282352,1739026267555,-505.84,0.00010795,2]
[352282353,1739026267564,-500.0,0.00010795,2]
[352282354,1739026267574,-500.0,0.00010795,2]
[352282355,1739026267583,-864.72,0.00010795,2]
[352282356,1739026267592,-500.0,0.00010795,2]
[352282357,1739026267601,-500.0,0.00010795,2]
[352282358,1739026267610,-500.0,0.00010795,2]
[352282359,1739026267619,-500.0,0.00010795,2]
[352282360,1739026267628,-578.86,0.00010795,2]
[352282361,1739026267637,-555.84,0.00010795,2]
[352282362,1739026267646,-3634.42,0.00010802,2]
[352282363,1739026267656,-159.793,0.00010802,2]
[352282364,1739026267665,-500.0,0.0001082,2]
[352282365,1739026267674,-656.65,0.0001082,2]
[352282366,1739026267683,-925.49,0.0001082,2]
[352282367,1739026267694,-225.93523656,0.0001082,2]
[352282368,1739026267703,-774.68,0.0001082,2]
[352282369,1739026267713,-500.0,0.0001082,2]
[352282370,1739026267722,-500.0,0.0001082,2]
[352282371,1739026267731,-1122.18,0.0001082,2]
[352282372,1739026267740,-598.25,0.0001082,2]
[352282373,1739026267750,-500.0,0.0001082,2]
[352282374,1739026267760,-953.88,0.0001082,2]
[352282375,1739026267769,-500.0,0.0001082,2]
[352282376,1739026267779,-500.0,0.0001082,2]
[352282377,1739026267791,-500.0,0.0001082,2]
[352282378,1739026267800,-500.0,0.0001082,2]
[352282379,1739026267809,-500.0,0.0001082,2]
[352282380,1739026267818,-500.0,0.0001082,2]
[352282381,1739026267829,-757.38,0.0001082,2]
[352282382,1739026267838,-706.06,0.0001082,2]
[352282383,1739026267847,-500.0,0.0001082,2]
[352282384,1739026267856,-500.0,0.0001082,2]
[352282385,1739026267868,-500.0,0.0001082,2]
[352282386,1739026267878,-500.0,0.0001082,2]
[352282387,1739026267887,-500.0,0.0001082,2]
[352282388,1739026267896,-906.28,0.0001082,2]
[352282389,1739026267905,-500.0,0.0001082,2]
[352282390,1739026267914,-500.0,0.0001082,2]
[352282391,1739026267924,-1048.24,0.0001082,2]
[352282392,1739026267933,-500.0,0.0001082,2]
[352282393,1739026267942,-500.0,0.0001082,2]
[352282394,1739026267952,-500.0,0.0001082,2]
[352282395,1739026267962,-512.4,0.0001082,2]
[352282396,1739026267972,-500.0,0.0001082,2]
[352282397,1739026267981,-1196.56,0.0001082,2]
[352282398,1739026267990,-500.0,0.0001082,2]
[352282399,1739026267999,-500.0,0.0001082,2]
[352282400,1739026268008,-1031.91,0.0001082,2]
[352282401,1739026268017,-500.0,0.0001082,2]
[352282402,1739026268026,-500.0,0.0001082,2]
[352282403,1739026268035,-1022.59,0.0001082,2]
[352282404,1739026268044,-500.0,0.0001082,2]
[352282405,1739026268053,-500.0,0.0001082,2]
[352282406,1739026268062,-910.52,0.0001082,2]
[352282407,1739026268071,-1252.81,0.0001082,2]
[352282408,1739026268080,-837.81,0.0001082,2]
[352282409,1739026268089,-957.31,0.0001082,2]
[352282410,1739026268099,-500.0,0.0001082,2]
[352282411,1739026268108,-500.0,0.0001082,2]
[352282412,1739026268117,-500.0,0.0001082,2]
[352282413,1739026268127,-500.0,0.0001082,2]
[352282414,1739026268136,-924.72,0.0001082,2]
[352282415,1739026268145,-1083.82,0.0001082,2]
[352282416,1739026268155,-500.0,0.0001082,2]
[352282417,1739026268164,-500.0,0.0001082,2]
[352282418,1739026268173,-974.06,0.0001082,2]
[352282419,1739026268182,-752.06,0.0001082,2]
[352282420,1739026268191,-1247.56,0.0001082,2]
[352282421,1739026268203,-8317.82,0.0001082,2]
[352282422,1739026268212,-1421.77,0.0001082,2]
[352282423,1739026268221,-631.34,0.0001082,2]
[352282424,1739026268230,-1072.48,0.0001082,2]
[352282425,1739026268239,-1505.97,0.0001082,2]
[352282426,1739026268249,-1102.95,0.0001082,2]
[352282427,1739026268258,-554.7,0.0001082,2]
[352282428,1739026268267,-1575.94,0.0001082,2]
[352282429,1739026268276,-1383.41,0.0001082,2]
[352282430,1739026268286,-1317.01,0.0001082,2]
[352282431,1739026268295,-836.92,0.0001082,2]
[352282432,1739026268305,-836.54,0.0001082,2]
[352282433,1739026268314,-2825.43,0.0001082,2]
[352282434,1739026268323,-801.18,0.0001082,2]
[352282435,1739026268332,-1691.58,0.0001082,2]
[352282436,1739026268341,-702.12,0.0001082,2]
[352282437,1739026268350,-2689.37,0.0001082,2]
[352282438,1739026268360,-500.0,0.0001082,2]
[352282439,1739026268370,-1106.63,0.0001082,2]
[352282440,1739026268379,-7893.9,0.0001082,2]
[352282441,1739026268389,-1323.78,0.0001082,2]
[352282442,1739026268400,-1253.18,0.0001082,2]
[352282443,1739026268409,-3271.27,0.0001082,2]
[352282444,1739026268418,-1229.47,0.0001082,2]
[352282445,1739026268428,-1507.29,0.0001082,2]
[352282446,1739026268437,-1826.28,0.0001082,2]
[352282447,1739026268447,-514.29,0.0001082,2]
[352282448,1739026268457,-684.67,0.0001082,2]
[352282449,1739026268466,-2570.97,0.0001082,2]
[352282450,1739026268476,-1173.27,0.0001082,2]
[352282451,1739026268485,-1229.47,0.0001082,2]
[352282452,1739026268494,-2260.43,0.0001082,2]
[352282453,1739026268503,-983.42,0.0001082,2]
[352282454,1739026268513,-2002.58,0.0001082,2]
[352282455,1739026268522,-500.0,0.0001082,2]
[352282456,1739026268531,-1205.81,0.0001082,2]
[352282457,1739026268541,-1006.09,0.0001082,2]
[352282458,1739026268550,-1671.41,0.0001082,2]
[352282459,1739026268559,-1057.86,0.0001082,2]
[352282460,1739026268569,-1803.33,0.0001082,2]
[352282461,1739026268578,-500.0,0.0001082,2]
[352282462,1739026268587,-1909.26,0.0001082,2]
[352282463,1739026268597,-2641.56,0.0001082,2]
[352282464,1739026268606,-1507.28,0.0001082,2]
[352282465,1739026268615,-500.0,0.0001082,2]
[352282466,1739026268624,-500.0,0.0001082,2]
[352282467,1739026268634,-276.72,0.0001082,2]
[352282468,1739026268644,-500.0,0.0001082,2]
[352282469,1739026268653,-500.0,0.0001082,2]
[352282470,1739026268663,-500.0,0.0001082,2]
[352282471,1739026268672,-3734.27,0.0001082,2]
[352282472,1739026268681,-513.48,0.0001082,2]
[352282473,1739026268691,-1611.15,0.0001082,2]
[352282474,1739026268704,-891.2,0.0001082,2]
[352282475,1739026268713,-2216.99,0.0001082,2]
[352282476,1739026268722,-1246.73,0.0001082,2]
[352282477,1739026268731,-500.0,0.0001082,2]
[352282478,1739026268741,-764.88,0.0001082,2]
[352282479,1739026268750,-1984.07,0.0001082,2]
[352282480,1739026268759,-957.88,0.0001082,2]
[352282481,1739026268769,-500.0,0.0001082,2]
[352282482,1739026268778,-1842.63,0.0001082,2]
[352282483,1739026268790,-1514.24,0.0001082,2]
[352282484,1739026268803,-2573.5,0.0001082,2]
[352282485,1739026268813,-2211.87,0.0001082,2]
[352282486,1739026268822,-2441.09,0.0001082,2]
[352282487,1739026268831,-657.03,0.0001082,2]
[352282488,1739026268842,-2415.47,0.0001082,2]
[352282489,1739026268852,-1133.49,0.0001082,2]
[352282490,1739026268861,-1000.0,0.0001082,2]
[352282491,1739026268871,-530.45,0.0001082,2]
[352282492,1739026268880,-1151.35,0.0001082,2]
[352282493,1739026268889,-500.0,0.0001082,2]
[352282494,1739026268899,-3467.02,0.0001082,2]
[352282495,1739026268908,-1453.75,0.0001082,2]
[352282496,1739026268918,-965.47,0.0001082,2]
[352282497,1739026268927,-1424.71,0.0001082,2]
[352282498,1739026268936,-1182.56,0.0001082,2]
[352282499,1739026268948,-500.0,0.0001082,2]
[352282500,1739026268958,-995.21,0.0001082,2]
[352282501,1739026268967,-794.79,0.0001082,2]
[352282502,1739026268976,-1067.88,0.0001082,2]
[352282503,1739026268985,-2227.08,0.0001082,2]
[352282504,1739026268994,-500.0,0.0001082,2]
[352282505,1739026269003,-2566.83,0.0001082,2]
[352282506,1739026269012,-2497.06,0.0001082,2]
[352282507,1739026269022,-520.29,0.0001082,2]
[352282508,1739026269032,-759.9,0.0001082,2]
[352282509,1739026269041,-970.99,0.0001082,2]
[352282510,1739026269051,-690.89,0.0001082,2]
[352282511,1739026269060,-2478.07,0.0001082,2]
[352282512,1739026269069,-500.0,0.0001082,2]
[352282513,1739026269078,-1873.84,0.0001082,2]
[352282514,1739026269087,-1551.26,0.0001082,2]
[352282515,1739026269097,-849.37,0.0001082,2]
[352282516,1739026269106,-507.02,0.0001082,2]
[352282517,1739026269115,-500.0,0.0001082,2]
[352282518,1739026269124,-968.16,0.0001082,2]
[352282519,1739026269133,-258.54813259,0.00010821,2]
[352282520,1739026269142,-500.0,0.00010821,2]
[352282521,1739026269151,-500.0,0.00010821,2]
[352282522,1739026269161,-500.0,0.00010821,2]
[352282523,1739026269170,-500.0,0.00010821,2]
[352282524,1739026269179,-500.0,0.00010821,2]
[352282525,1739026269188,-500.0,0.00010821,2]
[352282526,1739026269198,-500.0,0.00010821,2]
[352282527,1739026269207,-500.0,0.00010821,2]
[352282528,1739026269216,-1406.72,0.00010821,2]
[352282529,1739026269225,-606.94,0.00010821,2]
[352282530,1739026269234,-500.0,0.00010821,2]
[352282531,1739026269243,-500.0,0.00010821,2]
[352282532,1739026269252,-599.03,0.00010821,2]
[352282533,1739026269261,-500.0,0.00010821,2]
[352282534,1739026269270,-500.0,0.00010821,2]
[352282535,1739026269278,-500.0,0.00010821,2]
[352282536,1739026269287,-500.0,0.00010821,2]
[352282537,1739026269296,-500.0,0.00010821,2]
[352282538,1739026269305,-500.0,0.00010821,2]
[352282539,1739026269315,-500.0,0.00010821,2]
[352282540,1739026269324,-500.0,0.00010821,2]
[352282541,1739026269333,-500.0,0.00010821,2]
[352282542,1739026269343,-574.49817129,0.00010821,2]
[352282543,1739026269352,-500.0,0.00010821,2]
[352282544,1739026269361,-500.0,0.00010821,2]
[352282545,1739026269370,-500.0,0.00010821,2]
[352282546,1739026269379,-585.91,0.00010821,2]
[352282547,1739026269388,-530.52758283,0.00010821,2]
[352282548,1739026269398,-895.43,0.00010821,2]
[352282549,1739026269407,-667.16,0.00010821,2]
[352282550,1739026269416,-500.0,0.00010821,2]
[352282551,1739026269426,-1122.19,0.00010821,2]
[352282552,1739026269436,-1100.4,0.00010821,2]
[352282553,1739026269446,-500.0,0.00010821,2]
[352282554,1739026269456,-500.0,0.00010821,2]
[352282555,1739026269466,-500.0,0.00010821,2]
[352282556,1739026269476,-500.0,0.00010821,2]
[352282557,1739026269485,-500.0,0.00010821,2]
[352282558,1739026269495,-821.72,0.00010821,2]
[352282559,1739026269505,-861.29,0.00010821,2]
[352282560,1739026269514,-920.67,0.00010821,2]
[352282561,1739026269536,-500.0,0.00010821,2]
[352282562,1739026269547,-579.08,0.00010821,2]
[352282563,1739026269557,-500.0,0.00010821,2]
[352282564,1739026269567,-500.0,0.00010821,2]
[352282565,1739026269577,-772.46,0.00010821,2]
[352282566,1739026269587,-500.0,0.00010821,2]
[352282567,1739026269598,-601.24,0.00010821,2]
[352282568,1739026269608,-500.0,0.00010821,2]
[352282569,1739026269618,-500.0,0.00010821,2]
[352282570,1739026269628,-500.0,0.00010821,2]
[352282571,1739026269639,-500.0,0.00010821,2]
[352282572,1739026269649,-500.0,0.00010821,2]
[352282573,1739026269659,-500.0,0.00010821,2]
[352282574,1739026269669,-500.0,0.00010821,2]
[352282575,1739026269679,-528.45,0.00010821,2]
[352282576,1739026269689,-500.0,0.00010821,2]
[352282577,1739026269702,-500.0,0.00010821,2]
[352282578,1739026269712,-500.0,0.00010821,2]
[352282579,1739026269723,-500.0,0.00010821,2]
[352282580,1739026269733,-500.0,0.00010821,2]
[352282581,1739026269743,-500.0,0.00010821,2]
[352282582,1739026269753,-500.0,0.00010821,2]
[352282583,1739026269763,-500.0,0.00010821,2]
[352282584,1739026269773,-414.34881375,0.00010821,2]
[352282585,1739026269786,-500.0,0.00010821,2]
[352282586,1739026269801,-500.0,0.00010821,2]
[352282587,1739026269811,-500.0,0.00010821,2]
[352282588,1739026269820,-570.74,0.00010821,2]
[352282589,1739026269831,-500.0,0.00010821,2]
[352282590,1739026269842,-930.88,0.00010821,2]
[352282591,1739026269852,-1107.01,0.00010821,2]
[352282592,1739026269862,-500.0,0.00010821,2]
[352282593,1739026269873,-500.0,0.00010821,2]
[352282594,1739026269883,-500.0,0.00010821,2]
[352282595,1739026269893,-500.0,0.00010821,2]
[352282596,1739026269903,-785.72,0.00010821,2]
[352282597,1739026269912,-592.81,0.00010821,2]
[352282598,1739026269924,-500.0,0.00010821,2]
[352282599,1739026269935,-500.0,0.00010821,2]
[352282600,1739026269946,-500.0,0.00010821,2]
[352282601,1739026269956,-503.07,0.00010821,2]
[352282602,1739026269966,-500.0,0.00010821,2]
[352282603,1739026269976,-500.0,0.00010821,2]
[352282604,1739026269986,-1069.38,0.00010821,2]
[352282605,1739026269996,-500.0,0.00010821,2]